[Event "95th Caplin Hastings Congress"]
[Site "Hastings"]
[Date "2020.01.02"]
[Round "6.21"]
[White "Fryer, David W"]
[Black "Brouwer, Dennis"]
[Result "0-1"]
[ECO "C00"]
[WhiteElo "1913"]
[BlackElo "2202"]
[Annotator "NA"]
[PlyCount "58"]
[EventDate "2019.12.28"]
[EventType "swiss"]
[EventCountry "ENG"]
[SourceTitle "playchess.com"]
[Source "ChessBase"]
[SourceQuality "1"]
[TimeControl "40/6600+30:3000+30"]

1. e4 {[%emt 0:00:05]} e6 {[%emt 0:00:28]} 2. d3 {[%emt 0:09:38]} d5 {[%emt 0:00:47]} 3. Nd2 {[%emt 0:00:07]} Nf6 {[%emt 0:00:26]} 4. Ngf3 {[%emt 0:01:14]} Nc6 {[%emt 0:00:18]} 5. g3 {[%emt 0:00:00]} dxe4 {[%emt 0:10:25]} 6. dxe4 {[%emt 0:00:23]} e5 {[%emt 0:00:11]} 7. Bg2 {[%emt 0:00:42]} Bc5 {[%emt 0:00:17]} 8. O-O {[%emt 0:00:43]} O-O {[%emt 0:00:25]} 9. c3 {[%emt 0:03:32]} a5 $11 {[%emt 0:04:06]} 10. Qc2 {[%emt 0:12:11]} b6 11. Nb3 {[%emt 0:05:55]} Bd6 12. Nxe5 {[%emt 0:23:05]} Bxe5 {[%emt 0:01:40]} 13. f4 {[%emt 0:01:26]} a4 {[%emt 0:24:41]} 14. Nd2 {[%emt 0:03:12]} Ba6 15. Re1 {[%emt 0:00:30]} Qd6 {[%emt 0:38:47]} 16. Nf1 {[%emt 0:12:54]} Qc5+ {[%emt 0:05:58]} 17. Qf2 {[%emt 0:07:48]} Qxf2+ {[%emt 0:00:30]} 18. Kxf2 {[%emt 0:00:07]} Ng4+ {[%emt 0:03:52]} 19. Kf3 {[%emt 0:05:05]} Bxf1 {[%emt 0:00:21]} 20. Bxf1 {[%emt 0:00:13]} Nxh2+ {[%emt 0:02:23]} 21. Kg2 {[%emt 0:00:13]} Nxf1 {[%emt 0:00:44]} 22. fxe5 {[%emt 0:00:25]} Nxg3 {[%emt 0:00:54]} 23. Kxg3 Nxe5 24. Be3 {[%emt 0:03:57]} Rfd8 {[%emt 0:05:02]} 25. Re2 {[%emt 0:05:51]} Rd3 {[%emt 0:00:57]} 26. Kf4 {[%emt 0:01:04]} f6 {[%emt 0:00:21]} 27. Rh1 {[%emt 0:01:26]} a3 {[%emt 0:01:55]} 28. Kf5 {[%emt 0:03:52]} axb2 {[%emt 0:00:57]} 29. Bh6 {[%emt 0:01:16]} Rf3+ {[%emt 0:00:10]} 0-1

[Event "95th Caplin Hastings Congress"]
[Site "Hastings"]
[Date "2020.01.02"]
[Round "6.22"]
[White "Thorpe, Thomas"]
[Black "Gallagher, Daniel GH"]
[Result "1/2-1/2"]
[ECO "C29"]
[WhiteElo "1924"]
[BlackElo "2171"]
[Annotator "NA"]
[PlyCount "70"]
[EventDate "2019.12.28"]
[EventType "swiss"]
[EventCountry "ENG"]
[SourceTitle "playchess.com"]
[Source "ChessBase"]
[SourceQuality "1"]
[TimeControl "40/6600+30:3000+30"]

1. e4 {[%emt 0:09:33]} e5 {[%emt 0:10:04]} 2. Nc3 {[%emt 0:00:19]} Nf6 {[%emt 0:00:28]} 3. f4 {[%emt 0:01:13]} d5 {[%emt 0:00:06]} 4. exd5 {[%emt 0:03:03]} Nxd5 {[%emt 0:00:09]} 5. Nxd5 {[%emt 0:16:01]} Qxd5 {[%emt 0:00:06]} 6. fxe5 {[%emt 0:00:12]} Qxe5+ {[%emt 0:01:56]} 7. Qe2 {[%emt 0:01:31]} Qxe2+ {[%emt 0:07:28]} 8. Bxe2 {[%emt 0:03:21]} Bf5 {[%emt 0:12:23]} 9. d3 {[%emt 0:04:53]} Nc6 {[%emt 0:00:33]} 10. Nf3 {[%emt 0:12:16]} O-O-O {[%emt 0:01:45]} 11. Bf4 {[%emt 0:04:32]} Bc5 {[%emt 0:02:10]} 12. O-O-O {[%emt 0:18:26]} Rhe8 {[%emt 0:00:56]} 13. Bf1 {[%emt 0:00:33]} Nb4 {[%emt 0:40:38]} 14. a3 {[%emt 0:14:33]} Nd5 {[%emt 0:00:07]} 15. Bd2 {[%emt 0:00:06]} Bf2 {[%emt 0:09:04]} 16. d4 {[%emt 0:05:41]} Ne3 {[%emt 0:00:59]} 17. Bxe3 {[%emt 0:00:07]} Bxe3+ {[%emt 0:00:12]} 18. Kb1 {[%emt 0:00:07]} Bf4 {[%emt 0:10:56]} 19. Bc4 {[%emt 0:03:09]} f6 {[%emt 0:01:20]} 20. Rhe1 {[%emt 0:02:05]} Re3 {[%emt 0:07:18]} 21. Rxe3 {[%emt 0:04:56]} Bxe3 {[%emt 0:00:01]} 22. Bd3 {[%emt 0:00:34]} Bxd3 {[%emt 0:01:51]} 23. Rxd3 {[%emt 0:00:08]} Re8 {[%emt 0:00:21]} 24. Rd1 {[%emt 0:04:28]} Bf4 {[%emt 0:02:09]} 25. g3 {[%emt 0:00:39]} Bd6 {[%emt 0:00:03]} 26. Re1 {[%emt 0:04:09]} Rxe1+ {[%emt 0:00:05]} 27. Nxe1 {[%emt 0:00:03]} Kd7 {[%emt 0:00:17]} 28. d5 {[%emt 0:02:05]} b5 {[%emt 0:00:54]} 29. Ka2 {[%emt 0:03:43]} Bc5 {[%emt 0:02:08]} 30. b3 {[%emt 0:01:03]} g5 {[%emt 0:00:21]} 31. g4 {[%emt 0:00:38]} Kd6 {[%emt 0:00:05]} 32. c4 {[%emt 0:00:09]} bxc4 {[%emt 0:00:06]} 33. bxc4 {[%emt 0:00:04]} c6 {[%emt 0:01:50]} 34. dxc6 {[%emt 0:00:18]} Kxc6 {[%emt 0:01:34]} 35. Nd3 {[%emt 0:01:31]} Bg1 {[%emt 0:00:00]} 1/2-1/2

[Event "95th Caplin Hastings Congress"]
[Site "Hastings"]
[Date "2020.01.02"]
[Round "6.23"]
[White "Thatte, Nishchal"]
[Black "Sucikova, Svetlana"]
[Result "0-1"]
[ECO "B06"]
[WhiteElo "1723"]
[BlackElo "2160"]
[Annotator "ChessBase"]
[PlyCount "138"]
[EventDate "2019.12.28"]
[EventType "swiss"]
[EventCountry "ENG"]
[SourceTitle "playchess.com"]
[Source "ChessBase"]
[SourceQuality "1"]
[TimeControl "40/6600+30:3000+30"]

1. e4 {[%emt 0:09:33]} g6 {[%emt 0:10:31]} 2. d4 {[%emt 0:00:11]} Bg7 {[%emt 0:00:35]} 3. Nc3 {[%emt 0:00:13]} d6 {[%emt 0:00:44]} 4. f4 {[%emt 0:00:45]} a6 {[%emt 0:00:50]} 5. a4 {[%emt 0:06:47]} Nc6 {[%emt 0:03:17]} 6. Be3 {[%emt 0:14:09]} Nf6 {[%emt 0:01:51]} 7. Nf3 {[%emt 0:02:17]} O-O {[%emt 0:03:27]} 8. Qd2 {[%emt 0:09:37]} Ng4 {[%emt 0:07:07]} 9. Bg1 {[%emt 0:01:49]} e5 {[%emt 0:08:48]} 10. d5 {[%emt 0:19:35]} Nb8 {[%emt 0:08:22]} 11. h3 {[%emt 0:03:35]} Nf6 {[%emt 0:00:31]} 12. fxe5 {[%emt 0:03:36]} dxe5 {[%emt 0:00:29]} 13. Be3 {[%emt 0:00:14]} Nh5 {[%emt 0:03:36]} 14. Bh6 {[%emt 0:12:03]} Qd6 {[%emt 0:03:21]} 15. Bc4 {[%emt 0:07:35]} Qb4 {[%emt 0:05:35]} 16. Bxg7 {[%emt 0:03:52]} Kxg7 {[%emt 0:00:13]} 17. b3 {[%emt 0:00:14]} Ng3 {[%emt 0:09:28]} 18. Rg1 {[%emt 0:00:06]} Nh5 {[%emt 0:08:47]} 19. Nxe5 {[%emt 0:05:40]} Re8 {[%emt 0:02:27]} 20. Qd4 {[%emt 0:04:38]} f6 {[%emt 0:00:54]} 21. Nd3 {[%emt 0:00:32]} Qd6 {[%emt 0:07:10]} 22. O-O-O {[%emt 0:03:11]} Qa3+ {[%emt 0:05:11]} 23. Kd2 {[%emt 0:00:33]} Qd6 {[%emt 0:02:00]} 24. Qf2 {[%emt 0:03:32]} Kh8 {[%emt 0:06:27]} 25. g4 {[%emt 0:02:03]} Ng7 {[%emt 0:00:02]} 26. Rdf1 {[%emt 0:02:23]} Nd7 {[%emt 0:00:50]} 27. h4 {[%emt 0:00:24]} Rg8 {[%emt 0:01:55]} 28. h5 {[%emt 0:01:49]} g5 {[%emt 0:00:02]} 29. Ne2 {[%emt 0:01:15]} Ne8 {[%emt 0:01:59]} 30. Nd4 {[%emt 0:00:10]} Ne5 {[%emt 0:01:45]} 31. Nf5 {[%emt 0:01:28]} Nxd3 {[%emt 0:03:57]} 32. Bxd3 {[%emt 0:00:50]} Qb4+ {[%emt 0:02:08]} 33. Ke2 {[%emt 0:00:07]} b5 {[%emt 0:01:40]} 34. Ra1 {[%emt 0:00:53]} Bd7 {[%emt 0:01:09]} 35. axb5 {[%emt 0:00:44]} Bxb5 {[%emt 0:00:08]} 36. Qd4 {[%emt 0:00:16]} Bxd3+ {[%emt 0:00:58]} 37. Qxd3 {[%emt 0:00:08]} Nd6 {[%emt 0:03:08]} 38. Ra4 {[%emt 0:00:53]} Qb6 {[%emt 0:00:09]} 39. Qe3 {[%emt 0:00:30]} Qb5+ {[%emt 0:02:44]} 40. Qd3 {[%emt 0:00:49]} Qc5 {[%emt 0:00:27]} 41. Rga1 {[%emt 0:07:52]} Nxf5 {[%emt 0:05:05]} 42. exf5 {[%emt 0:00:08]} Rae8+ {[%emt 0:01:41]} 43. Kd2 {[%emt 0:01:09]} Re5 {[%emt 0:01:39]} 44. Rd4 {[%emt 0:04:51]} Rge8 {[%emt 0:01:37]} 45. Rd1 {[%emt 0:04:19]} Qa5+ {[%emt 0:15:00]} 46. Kc1 {[%emt 0:07:04]} Qa1+ {[%emt 0:00:31]} 47. Kd2 {[%emt 0:00:13]} Re2+ {[%emt 0:00:37]} 48. Qxe2 {[%emt 0:00:21]} Qxd4+ {[%emt 0:00:05]} 49. Qd3 {[%emt 0:00:06]} Qf4+ {[%emt 0:00:24]} 50. Kc3 {[%emt 0:00:34]} Re3 {[%emt 0:00:07]} 51. Qxe3 {[%emt 0:00:29]} Qxe3+ {[%emt 0:00:07]} 52. Rd3 {[%emt 0:00:02]} Qc5+ {[%emt 0:01:22]} 53. Kb2 {[%emt 0:00:41]} Qb4 {[%emt 0:00:19]} 54. Rg3 {[%emt 0:00:23]} Qf4 {[%emt 0:00:13]} 55. Rg2 {[%emt 0:00:06]} Qe4 {[%emt 0:00:09]} 56. Rd2 {[%emt 0:00:30]} Qxg4 {[%emt 0:00:47]} 57. d6 {[%emt 0:00:03]} cxd6 {[%emt 0:00:10]} 58. Rxd6 {[%emt 0:00:04]} Qxf5 {[%emt 0:00:05]} 59. Rxa6 {[%emt 0:00:08]} Kg7 {[%emt 0:00:21]} 60. b4 {[%emt 0:00:52]} g4 {[%emt 0:00:16]} 61. Ra5 {[%emt 0:00:04]} Qf4 {[%emt 0:01:08]} 62. Kb3 {[%emt 0:01:47]} g3 {[%emt 0:00:10]} 63. b5 {[%emt 0:00:03]} g2 {[%emt 0:00:09]} 64. Ra1 {[%emt 0:00:02]} Qf1 {[%emt 0:00:21]} 65. Rxf1 {[%emt 0:00:21]} gxf1=Q {[%emt 0:00:14]} 66. c4 {[%emt 0:00:06]} Qf2 {[%emt 0:01:40]} 67. Kb4 {[%emt 0:00:09]} Qd4 {[%emt 0:00:12]} 68. Ka5 {[%emt 0:00:21]} Qc3+ {[%emt 0:00:12]} 69. Ka6 {[%emt 0:00:13]} Qxc4 {[%emt 0:00:08]} 0-1

[Event "95th Caplin Hastings Congress"]
[Site "Hastings"]
[Date "2020.01.02"]
[Round "6.24"]
[White "Graham, David B"]
[Black "Shivika Rohilla"]
[Result "1-0"]
[ECO "C54"]
[WhiteElo "2152"]
[BlackElo "1744"]
[Annotator "NA"]
[PlyCount "85"]
[EventDate "2019.12.28"]
[EventType "swiss"]
[EventCountry "ENG"]
[SourceTitle "playchess.com"]
[Source "ChessBase"]
[SourceQuality "1"]
[TimeControl "40/6600+30:3000+30"]

1. e4 {[%emt 0:09:32]} e5 {[%emt 0:09:36]} 2. Nf3 {[%emt 0:00:04]} Nc6 {[%emt 0:00:04]} 3. Bc4 {[%emt 0:00:04]} Bc5 {[%emt 0:00:04]} 4. c3 {[%emt 0:00:15]} Nf6 {[%emt 0:00:05]} 5. d3 {[%emt 0:00:05]} O-O {[%emt 0:00:18]} 6. Bg5 {[%emt 0:00:06]} h6 {[%emt 0:00:14]} 7. Bh4 {[%emt 0:00:10]} Be7 {[%emt 0:00:17]} 8. Nbd2 {[%emt 0:03:11]} Re8 $14 {[%emt 0:06:22]} 9. Qb3 {[%emt 0:09:54]} Rf8 {[%emt 0:15:07]} 10. Qc2 {[%emt 0:01:53]} d6 {[%emt 0:01:54]} 11. a4 {[%emt 0:01:54]} Nh5 {[%emt 0:02:05]} 12. Bg3 {[%emt 0:01:13]} Nxg3 {[%emt 0:01:17]} 13. hxg3 {[%emt 0:01:30]} Be6 {[%emt 0:01:50]} 14. Bxe6 {[%emt 0:12:47]} fxe6 {[%emt 0:00:08]} 15. Nc4 {[%emt 0:01:45]} Bf6 {[%emt 0:03:24]} 16. Ne3 {[%emt 0:05:01]} Qe8 {[%emt 0:05:36]} 17. Ng4 {[%emt 0:15:43]} Be7 {[%emt 0:05:00]} 18. Qe2 {[%emt 0:12:23]} a6 {[%emt 0:02:21]} 19. Nh4 {[%emt 0:02:29]} b5 {[%emt 0:03:14]} 20. axb5 {[%emt 0:12:42]} axb5 {[%emt 0:00:08]} 21. Rxa8 {[%emt 0:00:05]} Qxa8 {[%emt 0:00:07]} 22. Nxh6+ {[%emt 0:03:26]} gxh6 {[%emt 0:00:52]} 23. Qg4+ {[%emt 0:00:34]} Bg5 {[%emt 0:00:48]} 24. Qxe6+ {[%emt 0:00:28]} Rf7 {[%emt 0:01:27]} 25. Nf5 {[%emt 0:06:52]} Kf8 {[%emt 0:07:16]} 26. Ke2 {[%emt 0:06:57]} Nd8 {[%emt 0:06:42]} 27. Qg6 {[%emt 0:01:41]} Qa2 {[%emt 0:01:19]} 28. Qxg5 {[%emt 0:00:28]} Qxb2+ {[%emt 0:05:11]} 29. Qd2 {[%emt 0:00:04]} Qb3 {[%emt 0:02:01]} 30. Rxh6 {[%emt 0:01:21]} Ke8 {[%emt 0:00:17]} 31. Rh1 {[%emt 0:03:35]} Ne6 {[%emt 0:00:39]} 32. Ra1 {[%emt 0:01:10]} Kd7 {[%emt 0:00:30]} 33. Ra2 {[%emt 0:00:52]} Nc5 {[%emt 0:00:58]} 34. Qb2 {[%emt 0:00:46]} Qxb2+ {[%emt 0:00:27]} 35. Rxb2 {[%emt 0:00:03]} Na4 {[%emt 0:00:07]} 36. Rb3 {[%emt 0:00:33]} d5 {[%emt 0:00:54]} 37. g4 {[%emt 0:01:29]} dxe4 {[%emt 0:00:13]} 38. dxe4 {[%emt 0:00:07]} Nc5 {[%emt 0:00:35]} 39. Rxb5 {[%emt 0:01:25]} Nxe4 {[%emt 0:00:07]} 40. Rxe5 {[%emt 0:00:35]} Nxc3+ {[%emt 0:00:07]} 41. Kf3 {[%emt 0:53:48]} c6 {[%emt 0:50:32]} 42. g5 {[%emt 0:00:00]} Nb5 {[%emt 0:00:00]} 43. g6 {[%emt 0:00:00]} 1-0

[Event "95th Caplin Hastings Congress"]
[Site "Hastings"]
[Date "2020.01.02"]
[Round "6.27"]
[White "Pekin, Tolgay"]
[Black "Wall, Tim P"]
[Result "1-0"]
[ECO "B04"]
[WhiteElo "2080"]
[BlackElo "2218"]
[Annotator "ChessBase"]
[PlyCount "31"]
[EventDate "2019.12.28"]
[EventType "swiss"]
[EventCountry "ENG"]
[SourceTitle "playchess.com"]
[Source "ChessBase"]
[SourceQuality "1"]
[TimeControl "40/6600+30:3000+30"]

1. e4 {[%emt 0:09:36]} Nf6 {[%emt 0:12:12]} 2. e5 {[%emt 0:00:14]} Nd5 {[%emt 0:00:14]} 3. d4 {[%emt 0:00:13]} d6 {[%emt 0:00:08]} 4. Nf3 {[%emt 0:01:27]} dxe5 {[%emt 0:00:35]} 5. Nxe5 {[%emt 0:00:13]} c6 {[%emt 0:00:12]} 6. h3 {[%emt 0:01:39]} g6 {[%emt 0:01:48]} 7. Bc4 {[%emt 0:02:46]} Bg7 {[%emt 0:00:52]} 8. O-O {[%emt 0:01:53]} O-O {[%emt 0:04:07]} 9. Re1 {[%emt 0:01:01]} Be6 {[%emt 0:04:53]} 10. Bb3 {[%emt 0:05:35]} a5 {[%emt 0:01:53]} 11. c4 {[%emt 0:02:23]} Nb6 {[%emt 0:04:25]} 12. c5 {[%emt 0:11:30]} Nd5 {[%emt 0:00:38]} 13. Nc3 {[%emt 0:01:25]} Nd7 {[%emt 0:03:48]} 14. Bxd5 {[%emt 0:15:07]} Bxd5 {[%emt 0:07:39]} 15. Nxd5 {[%emt 0:01:47]} Nxe5 {[%emt 0:16:57]} 16. Nb6 {[%emt 0:01:56]} 1-0

[Event "95th Caplin Hastings Congress"]
[Site "Hastings"]
[Date "2020.01.02"]
[Round "6.28"]
[White "Anuprita, Patil"]
[Black "Lehaci, Miruna-Daria"]
[Result "0-1"]
[ECO "E14"]
[WhiteElo "2025"]
[BlackElo "2214"]
[Annotator "ChessBase"]
[PlyCount "142"]
[EventDate "2019.12.28"]
[EventType "swiss"]
[EventCountry "ENG"]
[SourceTitle "playchess.com"]
[Source "ChessBase"]
[SourceQuality "1"]
[TimeControl "40/6600+30:3000+30"]

1. d4 {[%emt 0:17:45]} Nf6 {[%emt 0:09:35]} 2. Nf3 {[%emt 0:00:04]} e6 {[%emt 0:00:03]} 3. e3 {[%emt 0:00:04]} b6 {[%emt 0:00:46]} 4. Bd3 {[%emt 0:00:31]} Bb7 {[%emt 0:00:09]} 5. O-O {[%emt 0:00:08]} c5 {[%emt 0:00:07]} 6. c4 {[%emt 0:00:46]} cxd4 {[%emt 0:00:07]} 7. exd4 {[%emt 0:00:03]} Be7 {[%emt 0:00:07]} 8. Nc3 {[%emt 0:00:13]} O-O {[%emt 0:00:05]} 9. d5 {[%emt 0:03:19]} Na6 {[%emt 0:00:06]} 10. Bb1 {[%emt 0:06:46]} Qb8 {[%emt 0:12:49]} 11. Bg5 {[%emt 0:13:48]} h6 {[%emt 0:10:47]} 12. Bh4 {[%emt 0:12:46]} Qf4 {[%emt 0:06:54]} 13. Qe2 {[%emt 0:12:26]} Rfe8 {[%emt 0:05:32]} 14. Bg3 {[%emt 0:10:25]} Qg4 {[%emt 0:00:26]} 15. d6 {[%emt 0:07:22]} Bf8 {[%emt 0:00:48]} 16. Rd1 {[%emt 0:03:39]} Bxf3 {[%emt 0:11:20]} 17. gxf3 {[%emt 0:00:21]} Qh5 {[%emt 0:00:58]} 18. Kh1 {[%emt 0:05:57]} Rac8 {[%emt 0:04:20]} 19. Be5 {[%emt 0:01:27]} Nh7 {[%emt 0:01:53]} 20. Rg1 {[%emt 0:05:27]} Ng5 {[%emt 0:06:21]} 21. Rg3 {[%emt 0:01:56]} Nb4 {[%emt 0:06:52]} 22. Ne4 {[%emt 0:02:31]} Nxe4 {[%emt 0:02:04]} 23. Bxe4 {[%emt 0:03:45]} Rc5 {[%emt 0:09:14]} 24. Bc3 {[%emt 0:00:39]} Na6 {[%emt 0:02:40]} 25. b4 {[%emt 0:00:31]} Rg5 {[%emt 0:00:12]} 26. Rxg5 {[%emt 0:01:15]} hxg5 {[%emt 0:00:15]} 27. c5 {[%emt 0:00:12]} f5 {[%emt 0:00:55]} 28. Bd3 {[%emt 0:00:33]} Nb8 {[%emt 0:00:53]} 29. Bb5 {[%emt 0:00:32]} Kf7 {[%emt 0:00:41]} 30. Rd1 {[%emt 0:01:01]} Qh3 {[%emt 0:03:28]} 31. Bxd7 {[%emt 0:02:40]} Nxd7 {[%emt 0:01:41]} 32. c6 {[%emt 0:00:04]} Rd8 {[%emt 0:03:57]} 33. Re1 {[%emt 0:01:32]} f4 {[%emt 0:00:15]} 34. cxd7 {[%emt 0:01:38]} Bxd6 {[%emt 0:00:11]} 35. Rg1 {[%emt 0:01:21]} Be7 {[%emt 0:04:48]} 36. Qd1 {[%emt 0:01:21]} Qf5 {[%emt 0:00:55]} 37. Re1 {[%emt 0:01:28]} Qd5 {[%emt 0:02:13]} 38. Qxd5 {[%emt 0:00:07]} exd5 {[%emt 0:00:03]} 39. a3 {[%emt 0:01:31]} Rxd7 {[%emt 0:00:07]} 40. Bd4 {[%emt 0:00:18]} Bf6 {[%emt 0:01:29]} 41. Rd1 {[%emt 0:51:30]} Bxd4 {[%emt 0:50:36]} 42. Rxd4 {[%emt 0:00:04]} Ke6 {[%emt 0:00:03]} 43. Kg2 {[%emt 0:00:25]} Rc7 {[%emt 0:00:40]} 44. Rd1 {[%emt 0:00:00]} Rc3 {[%emt 0:00:00]} 45. Re1+ {[%emt 0:00:00]} Kd6 {[%emt 0:00:00]} 46. Re8 {[%emt 0:00:00]} Rxa3 {[%emt 0:00:00]} 47. Rg8 {[%emt 0:00:00]} d4 {[%emt 0:00:00]} 48. Kf1 {[%emt 0:00:00]} a5 {[%emt 0:00:00]} 49. Rxg7 {[%emt 0:00:00]} axb4 {[%emt 0:00:00]} 50. Rxg5 {[%emt 0:00:00]} b3 {[%emt 0:00:00]} 51. Ke2 {[%emt 0:00:00]} Kc6 {[%emt 0:00:00]} 52. Kd3 {[%emt 0:00:00]} b2+ {[%emt 0:00:00]} 53. Kc2 {[%emt 0:00:00]} Rxf3 {[%emt 0:00:00]} 54. Kxb2 {[%emt 0:00:00]} Rxf2+ {[%emt 0:00:00]} 55. Kb3 {[%emt 0:00:00]} Rxh2 {[%emt 0:00:00]} 56. Kc4 {[%emt 0:00:00]} Rh6 {[%emt 0:00:00]} 57. Kxd4 {[%emt 0:00:00]} Rf6 {[%emt 0:00:00]} 58. Rg2 {[%emt 0:00:00]} f3 {[%emt 0:00:00]} 59. Rf2 {[%emt 0:00:00]} b5 {[%emt 0:00:00]} 60. Ke3 {[%emt 0:00:00]} Kc5 {[%emt 0:00:00]} 61. Rc2+ {[%emt 0:00:00]} Kb4 {[%emt 0:00:00]} 62. Kf2 {[%emt 0:00:00]} Kb3 {[%emt 0:00:00]} 63. Rc8 {[%emt 0:00:00]} b4 {[%emt 0:00:00]} 64. Rb8 {[%emt 0:00:00]} Kc3 {[%emt 0:00:00]} 65. Rc8+ {[%emt 0:00:00]} Kb2 {[%emt 0:00:00]} 66. Rb8 {[%emt 0:00:00]} b3 {[%emt 0:00:00]} 67. Rb7 {[%emt 0:00:00]} Kc2 {[%emt 0:00:00]} 68. Rc7+ {[%emt 0:00:00]} Kb1 {[%emt 0:00:00]} 69. Rb7 {[%emt 0:00:00]} b2 {[%emt 0:00:00]} 70. Rb8 {[%emt 0:00:00]} Rf4 {[%emt 0:00:00]} 71. Rb7 {[%emt 0:00:00]} Ka2 {[%emt 0:00:00]} 0-1

[Event "95th Caplin Hastings Congress"]
[Site "Hastings"]
[Date "2020.01.02"]
[Round "6.29"]
[White "Elwin, Adrian G"]
[Black "Ratnesan, Ranesh"]
[Result "1/2-1/2"]
[ECO "D10"]
[WhiteElo "1986"]
[BlackElo "2213"]
[Annotator "ChessBase"]
[PlyCount "118"]
[EventDate "2019.12.28"]
[EventType "swiss"]
[EventCountry "ENG"]
[SourceTitle "playchess.com"]
[Source "ChessBase"]
[SourceQuality "1"]
[TimeControl "40/6600+30:3000+30"]

1. d4 {[%emt 0:09:34]} d5 {[%emt 0:18:47]} 2. c4 {[%emt 0:00:19]} c6 {[%emt 0:00:19]} 3. cxd5 {[%emt 0:00:11]} cxd5 {[%emt 0:00:07]} 4. Nc3 {[%emt 0:00:25]} Nf6 {[%emt 0:00:08]} 5. Bf4 {[%emt 0:00:46]} Nc6 {[%emt 0:00:24]} 6. e3 {[%emt 0:02:48]} Bf5 {[%emt 0:00:31]} 7. Qb3 {[%emt 0:05:46]} Na5 {[%emt 0:00:35]} 8. Bb5+ {[%emt 0:08:16]} Bd7 {[%emt 0:02:51]} 9. Bxd7+ {[%emt 0:02:57]} Qxd7 {[%emt 0:00:18]} 10. Qb5 {[%emt 0:03:46]} Nc6 {[%emt 0:05:12]} 11. Nge2 {[%emt 0:05:38]} e6 {[%emt 0:03:38]} 12. O-O {[%emt 0:03:51]} Be7 {[%emt 0:02:06]} 13. Rac1 {[%emt 0:03:50]} a6 {[%emt 0:08:28]} 14. Qb6 {[%emt 0:11:39]} O-O {[%emt 0:14:58]} 15. Na4 {[%emt 0:04:21]} Ne4 {[%emt 0:06:26]} 16. Rfd1 {[%emt 0:12:24]} Bd8 {[%emt 0:07:06]} 17. Nc5 {[%emt 0:02:46]} Nxc5 {[%emt 0:00:14]} 18. Qxc5 {[%emt 0:00:03]} Be7 {[%emt 0:00:41]} 19. Qb6 {[%emt 0:00:22]} Rfc8 {[%emt 0:01:31]} 20. Rc3 {[%emt 0:09:05]} Bd8 {[%emt 0:05:53]} 21. Qb3 {[%emt 0:04:39]} Na5 {[%emt 0:01:14]} 22. Qc2 {[%emt 0:05:06]} Rxc3 {[%emt 0:01:02]} 23. Nxc3 {[%emt 0:01:07]} b5 {[%emt 0:06:19]} 24. Rc1 {[%emt 0:05:00]} Rc8 {[%emt 0:00:45]} 25. Qd1 {[%emt 0:00:30]} Be7 {[%emt 0:12:22]} 26. Ne2 {[%emt 0:06:39]} Nc4 {[%emt 0:01:22]} 27. b3 {[%emt 0:00:39]} Na3 {[%emt 0:03:53]} 28. Qd2 {[%emt 0:06:50]} Rc6 {[%emt 0:13:03]} 29. f3 {[%emt 0:02:11]} Qc8 {[%emt 0:00:32]} 30. Rxc6 {[%emt 0:00:09]} Qxc6 {[%emt 0:00:03]} 31. Qc3 {[%emt 0:01:23]} Qxc3 {[%emt 0:00:07]} 32. Nxc3 {[%emt 0:00:02]} Bb4 {[%emt 0:00:19]} 33. Ne2 {[%emt 0:00:07]} Nb1 {[%emt 0:01:18]} 34. e4 {[%emt 0:00:47]} Nc3 {[%emt 0:00:34]} 35. Nxc3 {[%emt 0:00:03]} Bxc3 {[%emt 0:00:03]} 36. Be3 {[%emt 0:00:08]} f5 {[%emt 0:00:31]} 37. exd5 {[%emt 0:00:15]} exd5 {[%emt 0:00:05]} 38. Kf1 {[%emt 0:00:33]} Kf7 {[%emt 0:00:33]} 39. Ke2 {[%emt 0:00:04]} h5 {[%emt 0:01:40]} 40. Kd3 {[%emt 0:00:24]} Bb4 {[%emt 0:00:14]} 41. Bf4 {[%emt 0:50:41]} Be7 {[%emt 0:08:17]} 42. Be5 {[%emt 0:00:00]} g5 {[%emt 0:01:18]} 43. Ke3 {[%emt 0:00:00]} Kg6 {[%emt 0:03:34]} 44. h3 {[%emt 0:00:00]} f4+ {[%emt 0:03:19]} 45. Kf2 {[%emt 0:00:00]} Kf5 {[%emt 0:00:39]} 46. g3 {[%emt 0:00:00]} fxg3+ {[%emt 0:00:40]} 47. Bxg3 {[%emt 0:00:00]} Ba3 {[%emt 0:02:17]} 48. Bc7 {[%emt 0:00:00]} Bb2 {[%emt 0:11:48]} 49. Ke3 {[%emt 0:00:00]} Bc1+ {[%emt 0:00:52]} 50. Kf2 {[%emt 0:00:00]} Bd2 {[%emt 0:00:21]} 51. a4 {[%emt 0:00:00]} Bf4 {[%emt 0:03:06]} 52. Ba5 {[%emt 0:00:00]} Bd6 {[%emt 0:04:02]} 53. axb5 {[%emt 0:00:00]} axb5 {[%emt 0:00:06]} 54. Bd2 {[%emt 0:00:00]} Ba3 {[%emt 0:02:01]} 55. Ba5 {[%emt 0:00:00]} Bb2 {[%emt 0:00:27]} 56. Ke3 {[%emt 0:00:00]} Bc1+ {[%emt 0:01:28]} 57. Kf2 {[%emt 0:00:00]} Kf4 {[%emt 0:02:20]} 58. Bc7+ {[%emt 0:00:00]} Kf5 {[%emt 0:00:11]} 59. Ba5 {[%emt 0:00:00]} Kf4 {[%emt 0:02:07]} 1/2-1/2

[Event "95th Caplin Hastings Congress"]
[Site "Hastings"]
[Date "2020.01.02"]
[Round "6.30"]
[White "Spanton, Tim R"]
[Black "Keetman, Maaike"]
[Result "0-1"]
[ECO "B23"]
[WhiteElo "1951"]
[BlackElo "2203"]
[Annotator "NA"]
[PlyCount "62"]
[EventDate "2019.12.28"]
[EventType "swiss"]
[EventCountry "ENG"]
[SourceTitle "playchess.com"]
[Source "ChessBase"]
[SourceQuality "1"]
[TimeControl "40/6600+30:3000+30"]

1. e4 {[%emt 0:09:33]} c5 {[%emt 0:10:11]} 2. Nc3 {[%emt 0:00:07]} Nc6 {[%emt 0:00:38]} 3. Nge2 {[%emt 0:00:14]} e5 {[%emt 0:07:53]} 4. Nd5 {[%emt 0:00:58]} Nf6 {[%emt 0:05:24]} 5. Nec3 {[%emt 0:00:17]} Nxd5 {[%emt 0:02:01]} 6. Nxd5 {[%emt 0:00:18]} g6 {[%emt 0:00:22]} 7. Qf3 {[%emt 0:02:46]} Bg7 {[%emt 0:00:25]} 8. Bc4 {[%emt 0:01:04]} O-O {[%emt 0:01:54]} 9. c3 {[%emt 0:01:49]} a6 {[%emt 0:07:14]} 10. a4 {[%emt 0:01:48]} Rb8 {[%emt 0:03:34]} 11. Qe2 {[%emt 0:03:44]} d6 {[%emt 0:04:36]} 12. d3 {[%emt 0:00:32]} Be6 {[%emt 0:05:15]} 13. Be3 {[%emt 0:03:11]} b5 {[%emt 0:06:59]} 14. axb5 {[%emt 0:00:12]} axb5 {[%emt 0:00:05]} 15. Bb3 {[%emt 0:02:43]} b4 {[%emt 0:10:13]} 16. c4 {[%emt 0:04:10]} Ra8 {[%emt 0:19:11]} 17. O-O {[%emt 0:00:46]} Na5 $11 {[%emt 0:01:11]} 18. Ba4 {[%emt 0:03:42]} f5 {[%emt 0:00:20]} 19. f4 {[%emt 0:01:05]} Ra7 {[%emt 0:08:50]} 20. fxe5 {[%emt 0:06:15]} Bxe5 {[%emt 0:00:27]} 21. exf5 {[%emt 0:05:07]} Bxd5 {[%emt 0:07:08]} 22. cxd5 {[%emt 0:00:09]} gxf5 {[%emt 0:00:18]} 23. Bf4 {[%emt 0:08:31]} Bxf4 {[%emt 0:03:30]} 24. Rxf4 {[%emt 0:00:42]} Nb3 {[%emt 0:00:07]} 25. Qe6+ {[%emt 0:09:06]} Kh8 {[%emt 0:00:07]} 26. Raf1 {[%emt 0:02:57]} Rxa4 {[%emt 0:03:47]} 27. Rxf5 {[%emt 0:01:03]} Rxf5 {[%emt 0:00:22]} 28. Qxf5 {[%emt 0:00:08]} Ra1 {[%emt 0:04:22]} 29. Rxa1 {[%emt 0:01:31]} Nxa1 {[%emt 0:00:05]} 30. g4 {[%emt 0:00:27]} Nc2 {[%emt 0:00:57]} 31. h4 {[%emt 0:00:43]} Qe7 {[%emt 0:01:07]} 0-1